[Event "Early-Titled-Tuesday-Blitz-January-16-2024"]
[Site "Chess.com"]
[Date "2024.01.16"]
[Round "5"]
[White "GalaxyRoman"]
[Black "Makswolf200817"]
[Result "1-0"]
[WhiteElo "2879"]
[BlackElo "2662"]
[TimeControl "180+1"]
[EndTime "8:58:09 PST"]
[Termination "GalaxyRoman won by resignation"]

1. e4 {[%clk 0:03:00.9]} 1... e6 {[%clk 0:02:59.1]} 2. d4 {[%clk 0:02:57.4]}
2... d5 {[%clk 0:02:59.5]} 3. exd5 {[%clk 0:02:57.3]} 3... exd5 {[%clk
0:02:59.4]} 4. Nc3 {[%clk 0:02:56.7]} 4... c6 {[%clk 0:02:51.7]} 5. Bd3 {[%clk
0:02:52.7]} 5... Bd6 {[%clk 0:02:51.8]} 6. Nge2 {[%clk 0:02:52.3]} 6... Ne7
{[%clk 0:02:51.3]} 7. Bg5 {[%clk 0:02:48.2]} 7... f6 {[%clk 0:02:47]} 8. Bh4
{[%clk 0:02:47.4]} 8... Bf5 {[%clk 0:02:47.6]} 9. Bg3 {[%clk 0:02:42.7]} 9...
O-O {[%clk 0:02:45.4]} 10. O-O {[%clk 0:02:40]} 10... Na6 {[%clk 0:02:44.7]} 11.
Bxa6 {[%clk 0:02:38]} 11... bxa6 {[%clk 0:02:44.4]} 12. Na4 {[%clk 0:02:38]}
12... Rb8 {[%clk 0:02:42.2]} 13. c3 {[%clk 0:02:29.2]} 13... Bg6 {[%clk
0:02:33.6]} 14. Re1 {[%clk 0:02:27.3]} 14... Re8 {[%clk 0:02:22.7]} 15. Qd2
{[%clk 0:02:24.2]} 15... Nf5 {[%clk 0:02:20.4]} 16. Nc5 {[%clk 0:02:06.8]} 16...
Nxg3 {[%clk 0:02:13.9]} 17. hxg3 {[%clk 0:02:06.5]} 17... Bxc5 {[%clk
0:02:14.1]} 18. dxc5 {[%clk 0:02:07.4]} 18... a5 {[%clk 0:02:01.3]} 19. Nd4
{[%clk 0:02:07]} 19... Qd7 {[%clk 0:01:59.3]} 20. Rxe8+ {[%clk 0:02:04.9]} 20...
Bxe8 {[%clk 0:01:56]} 21. Re1 {[%clk 0:02:04.9]} 21... Bf7 {[%clk 0:01:51.7]}
22. Qf4 {[%clk 0:01:55.9]} 22... Rxb2 {[%clk 0:01:41.6]} 23. Qd6 {[%clk
0:01:52.9]} 23... Rb7 {[%clk 0:01:27.6]} 24. Qxd7 {[%clk 0:01:13.1]} 24... Rxd7
{[%clk 0:01:27.3]} 25. Rb1 {[%clk 0:01:13.8]} 25... Be8 {[%clk 0:01:14.6]} 26.
Rb8 {[%clk 0:01:08.1]} 26... Kf7 {[%clk 0:01:14.8]} 27. Nf5 {[%clk 0:01:00]}
27... Kg6 {[%clk 0:00:54.9]} 28. Nd6 {[%clk 0:00:53.3]} 28... Bf7 {[%clk
0:00:54.2]} 29. a3 {[%clk 0:00:44.8]} 29... Re7 {[%clk 0:00:49.6]} 30. Kf1
{[%clk 0:00:44.8]} 30... Be6 {[%clk 0:00:44.4]} 31. f3 {[%clk 0:00:33.8]} 31...
Bf5 {[%clk 0:00:43.3]} 32. g4 {[%clk 0:00:33.1]} 32... Bd3+ {[%clk 0:00:42.8]}
33. Kf2 {[%clk 0:00:33.4]} 33... Re2+ {[%clk 0:00:40.3]} 34. Kg3 {[%clk
0:00:33.1]} 34... Rc2 {[%clk 0:00:38.6]} 35. Rb7 {[%clk 0:00:31.2]} 35... Bf1
{[%clk 0:00:25.8]} 36. Nf5 {[%clk 0:00:31.2]} 36... Rxg2+ {[%clk 0:00:11.3]} 37.
Kf4 {[%clk 0:00:30.9]} 1-0

[Event "Early-Titled-Tuesday-Blitz-January-16-2024"]
[Site "Chess.com"]
[Date "2024.01.16"]
[Round "5"]
[White "andrzej"]
[Black "ZuraTqebuchava"]
[Result "1-0"]
[WhiteElo "2380"]
[BlackElo "2153"]
[TimeControl "180+1"]
[EndTime "8:58:10 PST"]
[Termination "andrzej won on time"]

1. e4 {[%clk 0:03:00.9]} 1... e5 {[%clk 0:03:00.4]} 2. Nf3 {[%clk 0:03:00.9]}
2... Nc6 {[%clk 0:02:59.7]} 3. Bb5 {[%clk 0:03:01.1]} 3... Be7 {[%clk
0:02:59.4]} 4. O-O {[%clk 0:02:57.8]} 4... d6 {[%clk 0:02:57.9]} 5. d4 {[%clk
0:02:56.2]} 5... exd4 {[%clk 0:02:56.6]} 6. Nxd4 {[%clk 0:02:56.2]} 6... Bd7
{[%clk 0:02:56]} 7. Nc3 {[%clk 0:02:54.2]} 7... Nf6 {[%clk 0:02:55.1]} 8. Nxc6
{[%clk 0:02:50]} 8... bxc6 {[%clk 0:02:54.6]} 9. Bd3 {[%clk 0:02:50.4]} 9... O-O
{[%clk 0:02:53.2]} 10. f4 {[%clk 0:02:50.7]} 10... Rb8 {[%clk 0:02:44.3]} 11. b3
{[%clk 0:02:49.8]} 11... c5 {[%clk 0:02:34.6]} 12. Qe1 {[%clk 0:02:42.6]} 12...
Bc6 {[%clk 0:02:31.1]} 13. Qg3 {[%clk 0:02:41.4]} 13... Re8 {[%clk 0:02:21.7]}
14. e5 {[%clk 0:02:27.3]} 14... dxe5 {[%clk 0:02:16.7]} 15. fxe5 {[%clk
0:02:27.6]} 15... Nh5 {[%clk 0:01:56.8]} 16. Qh3 {[%clk 0:02:09.3]} 16... Qd4+
{[%clk 0:01:50.5]} 17. Kh1 {[%clk 0:02:08.1]} 17... Qh4 {[%clk 0:01:28.1]} 18.
Qxh4 {[%clk 0:01:49.4]} 18... Bxh4 {[%clk 0:01:28.1]} 19. Bb2 {[%clk 0:01:40.7]}
19... g6 {[%clk 0:01:16]} 20. Bc4 {[%clk 0:01:38.4]} 20... Re7 {[%clk
0:01:04.8]} 21. Nd5 {[%clk 0:01:37.9]} 21... Bxd5 {[%clk 0:01:02.6]} 22. Bxd5
{[%clk 0:01:38.8]} 22... Ng7 {[%clk 0:00:53]} 23. g3 {[%clk 0:01:32.2]} 23...
Bg5 {[%clk 0:00:51.1]} 24. h4 {[%clk 0:01:32.7]} 24... Be3 {[%clk 0:00:48.5]}
25. Rad1 {[%clk 0:01:10]} 25... Nf5 {[%clk 0:00:41.4]} 26. Rf3 {[%clk
0:01:06.1]} 26... Bd4 {[%clk 0:00:34.5]} 27. Bxd4 {[%clk 0:00:56.8]} 27... cxd4
{[%clk 0:00:32.8]} 28. Rdf1 {[%clk 0:00:42.2]} 28... Rxe5 {[%clk 0:00:19.1]} 29.
Bc4 {[%clk 0:00:41]} 29... h5 {[%clk 0:00:04.9]} 30. R1f2 {[%clk 0:00:37.8]}
30... Re1+ {[%clk 0:00:04.4]} 31. Kh2 {[%clk 0:00:37.8]} 31... Re7 {[%clk
0:00:00.9]} 32. Rd2 {[%clk 0:00:31.6]} 1-0

[Event "Early-Titled-Tuesday-Blitz-January-16-2024"]
[Site "Chess.com"]
[Date "2024.01.16"]
[Round "5"]
[White "CSB7"]
[Black "Volodar_Murzin"]
[Result "0-1"]
[WhiteElo "2693"]
[BlackElo "2924"]
[TimeControl "180+1"]
[EndTime "8:58:13 PST"]
[Termination "Volodar_Murzin won on time"]

1. d4 {[%clk 0:03:00.9]} 1... Nf6 {[%clk 0:02:59.7]} 2. c4 {[%clk 0:03:00.6]}
2... g6 {[%clk 0:02:59.9]} 3. Nc3 {[%clk 0:02:57.9]} 3... Bg7 {[%clk 0:02:59.6]}
4. e4 {[%clk 0:02:54]} 4... O-O {[%clk 0:02:59.6]} 5. Be2 {[%clk 0:02:44.3]}
5... d6 {[%clk 0:02:59.3]} 6. Bg5 {[%clk 0:02:45.1]} 6... Nbd7 {[%clk
0:02:53.3]} 7. Nf3 {[%clk 0:02:37.5]} 7... e5 {[%clk 0:02:52.3]} 8. d5 {[%clk
0:02:33.9]} 8... h6 {[%clk 0:02:50.9]} 9. Be3 {[%clk 0:01:59.6]} 9... Ng4 {[%clk
0:02:50.4]} 10. Bd2 {[%clk 0:01:59.6]} 10... f5 {[%clk 0:02:50.9]} 11. h3 {[%clk
0:01:57.9]} 11... Ngf6 {[%clk 0:02:50.8]} 12. Nh4 {[%clk 0:01:44.4]} 12... Nxe4
{[%clk 0:02:31.4]} 13. Nxg6 {[%clk 0:01:43.4]} 13... Rf6 {[%clk 0:02:31.8]} 14.
Nxe4 {[%clk 0:01:22.8]} 14... fxe4 {[%clk 0:02:30.6]} 15. Nh4 {[%clk 0:01:19.7]}
15... Nc5 {[%clk 0:02:29.3]} 16. Be3 {[%clk 0:01:15.6]} 16... Bd7 {[%clk
0:02:20.9]} 17. g4 {[%clk 0:01:06.3]} 17... Rf7 {[%clk 0:02:02]} 18. Nf5 {[%clk
0:01:03.5]} 18... Bxf5 {[%clk 0:01:58.2]} 19. gxf5 {[%clk 0:01:04.4]} 19... Rxf5
{[%clk 0:01:57.9]} 20. h4 {[%clk 0:00:46.4]} 20... Qf6 {[%clk 0:01:54.9]} 21.
Qc2 {[%clk 0:00:37.6]} 21... a5 {[%clk 0:01:52.2]} 22. O-O-O {[%clk 0:00:33.9]}
22... Kh8 {[%clk 0:01:49.9]} 23. Kb1 {[%clk 0:00:31.8]} 23... b6 {[%clk
0:01:48.5]} 24. Rdg1 {[%clk 0:00:30.9]} 24... Rf8 {[%clk 0:01:48.4]} 25. Rg2
{[%clk 0:00:30.8]} 25... Rf7 {[%clk 0:01:44.3]} 26. h5 {[%clk 0:00:28.7]} 26...
Rf4 {[%clk 0:01:38.8]} 27. Rhg1 {[%clk 0:00:24.3]} 27... Qh4 {[%clk 0:01:23.3]}
28. a3 {[%clk 0:00:14.9]} 28... a4 {[%clk 0:01:19.2]} 29. Ka2 {[%clk 0:00:04.5]}
29... Nb3 {[%clk 0:01:05.7]} 30. Bxf4 {[%clk 0:00:02.8]} 30... Qxf4 {[%clk
0:00:40.4]} 31. Rg4 {[%clk 0:00:02.3]} 31... Qd2 {[%clk 0:00:34.8]} 32. Qxe4
{[%clk 0:00:02.1]} 32... Nc1+ {[%clk 0:00:29.3]} 33. Rxc1 {[%clk 0:00:02.2]}
33... Qxc1 {[%clk 0:00:30.2]} 34. Qg6 {[%clk 0:00:02.6]} 34... e4 {[%clk
0:00:30]} 0-1

[Event "Early-Titled-Tuesday-Blitz-January-16-2024"]
[Site "Chess.com"]
[Date "2024.01.16"]
[Round "5"]
[White "stepanosinovsky"]
[Black "C_K_G"]
[Result "1-0"]
[WhiteElo "2391"]
[BlackElo "2040"]
[TimeControl "180+1"]
[EndTime "8:58:13 PST"]
[Termination "stepanosinovsky won on time"]

1. Nf3 {[%clk 0:02:56.9]} 1... d5 {[%clk 0:02:59.7]} 2. g3 {[%clk 0:02:57]} 2...
Nf6 {[%clk 0:02:58.5]} 3. Bg2 {[%clk 0:02:57.9]} 3... c5 {[%clk 0:02:58.5]} 4.
O-O {[%clk 0:02:58.8]} 4... Nc6 {[%clk 0:02:57.8]} 5. d3 {[%clk 0:02:59.7]} 5...
e6 {[%clk 0:02:58]} 6. Nbd2 {[%clk 0:03:00.6]} 6... Be7 {[%clk 0:02:58.4]} 7. e4
{[%clk 0:03:01.4]} 7... O-O {[%clk 0:02:57.5]} 8. Re1 {[%clk 0:03:01.5]} 8... h6
{[%clk 0:02:56.5]} 9. e5 {[%clk 0:02:47.3]} 9... Nd7 {[%clk 0:02:47]} 10. c3
{[%clk 0:02:39.2]} 10... d4 {[%clk 0:02:38]} 11. c4 {[%clk 0:02:26.7]} 11... Qc7
{[%clk 0:02:01.1]} 12. Qe2 {[%clk 0:02:25.6]} 12... a6 {[%clk 0:01:55.5]} 13. h4
{[%clk 0:02:18.8]} 13... b5 {[%clk 0:01:51.2]} 14. a4 {[%clk 0:01:43.4]} 14...
bxa4 {[%clk 0:01:37.4]} 15. Nf1 {[%clk 0:01:34.4]} 15... Bb7 {[%clk 0:01:36.2]}
16. g4 {[%clk 0:01:33.4]} 16... Rfb8 {[%clk 0:00:51.6]} 17. Ng3 {[%clk
0:01:32.8]} 17... Ncxe5 {[%clk 0:00:29.5]} 18. Nxe5 {[%clk 0:01:24.1]} 18...
Bxg2 {[%clk 0:00:23.8]} 19. Kxg2 {[%clk 0:01:22.7]} 19... Bxh4 {[%clk
0:00:19.9]} 20. Nxd7 {[%clk 0:01:14.5]} 20... Qxd7 {[%clk 0:00:19.6]} 21. Ne4
{[%clk 0:01:13]} 21... Qc7 {[%clk 0:00:17.9]} 22. Rh1 {[%clk 0:01:09.7]} 22...
Be7 {[%clk 0:00:17.1]} 23. g5 {[%clk 0:01:08.9]} 23... f5 {[%clk 0:00:13.9]} 24.
gxf6 {[%clk 0:01:07.3]} 24... Bxf6 {[%clk 0:00:11.6]} 25. Bxh6 {[%clk
0:00:47.6]} 25... Be5 {[%clk 0:00:08.3]} 26. Bg5 {[%clk 0:00:41.7]} 26... Rf8
{[%clk 0:00:08.2]} 27. Qh5 {[%clk 0:00:40.8]} 27... Rae8 {[%clk 0:00:06]} 28.
Qg6 {[%clk 0:00:35.1]} 28... Rf5 {[%clk 0:00:05.3]} 29. Qxe8+ {[%clk 0:00:31.1]}
29... Rf8 {[%clk 0:00:03.2]} 30. Rh8+ {[%clk 0:00:31.4]} 30... Kxh8 {[%clk
0:00:03.1]} 31. Qxf8+ {[%clk 0:00:31.8]} 31... Kh7 {[%clk 0:00:04]} 32. Qe8
{[%clk 0:00:26.4]} 1-0

[Event "Early-Titled-Tuesday-Blitz-January-16-2024"]
[Site "Chess.com"]
[Date "2024.01.16"]
[Round "5"]
[White "almaguerjm"]
[Black "Zapateado"]
[Result "1-0"]
[WhiteElo "2499"]
[BlackElo "2357"]
[TimeControl "180+1"]
[EndTime "8:58:15 PST"]
[Termination "almaguerjm won on time"]

1. e4 {[%clk 0:03:00.9]} 1... c5 {[%clk 0:02:52.8]} 2. Nf3 {[%clk 0:03:00.2]}
2... g6 {[%clk 0:02:53.3]} 3. d4 {[%clk 0:02:59]} 3... cxd4 {[%clk 0:02:54.2]}
4. Nxd4 {[%clk 0:02:59.4]} 4... Nc6 {[%clk 0:02:52.5]} 5. c4 {[%clk 0:02:58.9]}
5... Nf6 {[%clk 0:02:51.2]} 6. Nc3 {[%clk 0:02:58.5]} 6... d6 {[%clk 0:02:51.8]}
7. Be2 {[%clk 0:02:58.3]} 7... Nxd4 {[%clk 0:02:51.7]} 8. Qxd4 {[%clk
0:02:58.1]} 8... Bg7 {[%clk 0:02:52.3]} 9. Qd3 {[%clk 0:02:48.5]} 9... O-O
{[%clk 0:02:45.9]} 10. Be3 {[%clk 0:02:41]} 10... Be6 {[%clk 0:02:46.1]} 11. Rc1
{[%clk 0:02:39]} 11... Qa5 {[%clk 0:02:44]} 12. O-O {[%clk 0:02:36.1]} 12...
Rfc8 {[%clk 0:02:44.4]} 13. b3 {[%clk 0:02:36]} 13... a6 {[%clk 0:02:35.1]} 14.
Na4 {[%clk 0:02:25.5]} 14... Nd7 {[%clk 0:02:31.2]} 15. f4 {[%clk 0:02:18.7]}
15... f5 {[%clk 0:02:08.2]} 16. Bd2 {[%clk 0:01:11.3]} 16... fxe4 {[%clk
0:01:53.1]} 17. Qxe4 {[%clk 0:01:10.9]} 17... Bf5 {[%clk 0:00:11.9]} 18. Qe3
{[%clk 0:00:47]} 18... Qd8 {[%clk 0:00:11.4]} 19. g4 {[%clk 0:00:42]} 19... b5
{[%clk 0:00:10.1]} 20. Nc3 {[%clk 0:00:28.3]} 20... bxc4 {[%clk 0:00:05.5]} 21.
gxf5 {[%clk 0:00:25.1]} 21... cxb3 {[%clk 0:00:04.8]} 22. fxg6 {[%clk
0:00:25.6]} 22... hxg6 {[%clk 0:00:02.8]} 23. axb3 {[%clk 0:00:25.3]} 23... Nc5
{[%clk 0:00:02.7]} 24. Nd5 {[%clk 0:00:18.8]} 24... e6 {[%clk 0:00:01.9]} 25.
Nb4 {[%clk 0:00:12.1]} 25... Rab8 {[%clk 0:00:02.2]} 26. Nxa6 {[%clk 0:00:10.8]}
26... Rxb3 {[%clk 0:00:02.2]} 27. Qf2 {[%clk 0:00:05.2]} 1-0

[Event "Early-Titled-Tuesday-Blitz-January-16-2024"]
[Site "Chess.com"]
[Date "2024.01.16"]
[Round "5"]
[White "Joshukid"]
[Black "Sychev_Klementy"]
[Result "1/2-1/2"]
[WhiteElo "2611"]
[BlackElo "2778"]
[TimeControl "180+1"]
[EndTime "8:58:16 PST"]
[Termination "Game drawn by repetition"]

1. Nf3 {[%clk 0:02:57]} 1... Nf6 {[%clk 0:02:59.2]} 2. c4 {[%clk 0:02:57.2]}
2... g6 {[%clk 0:02:55.6]} 3. b3 {[%clk 0:02:57.3]} 3... c5 {[%clk 0:02:53]} 4.
Bb2 {[%clk 0:02:58.2]} 4... Bg7 {[%clk 0:02:51.8]} 5. g3 {[%clk 0:02:56]} 5...
Nc6 {[%clk 0:02:37.2]} 6. Bg2 {[%clk 0:02:52.6]} 6... h5 {[%clk 0:02:37.2]} 7.
h4 {[%clk 0:02:46.4]} 7... O-O {[%clk 0:02:35.2]} 8. O-O {[%clk 0:02:44.5]} 8...
d6 {[%clk 0:02:31.1]} 9. d4 {[%clk 0:02:42.8]} 9... Ne4 {[%clk 0:02:26.1]} 10.
Nbd2 {[%clk 0:02:38.7]} 10... Bf5 {[%clk 0:02:25.2]} 11. Nxe4 {[%clk 0:02:36.4]}
11... Bxe4 {[%clk 0:02:25.1]} 12. e3 {[%clk 0:02:37.3]} 12... d5 {[%clk
0:02:23.1]} 13. Qe2 {[%clk 0:02:23.3]} 13... cxd4 {[%clk 0:02:04.2]} 14. Nxd4
{[%clk 0:02:14.2]} 14... Bxg2 {[%clk 0:01:50.3]} 15. Kxg2 {[%clk 0:02:00.5]}
15... dxc4 {[%clk 0:01:45.2]} 16. Nxc6 {[%clk 0:01:52.1]} 16... Qd5+ {[%clk
0:01:43.2]} 17. Qf3 {[%clk 0:01:35.8]} 17... bxc6 {[%clk 0:01:06.9]} 18. Bxg7
{[%clk 0:01:33.1]} 18... Kxg7 {[%clk 0:01:07.8]} 19. bxc4 {[%clk 0:01:33]} 19...
Qc5 {[%clk 0:01:07.3]} 20. Rfd1 {[%clk 0:01:26.8]} 20... Rfd8 {[%clk 0:01:05.3]}
21. Qe4 {[%clk 0:00:55.3]} 21... Rab8 {[%clk 0:01:03.4]} 22. Rab1 {[%clk
0:00:47.9]} 22... Rxb1 {[%clk 0:00:46.1]} 23. Rxd8 {[%clk 0:00:38.4]} 23... Rb4
{[%clk 0:00:45.9]} 24. Rd7 {[%clk 0:00:34.5]} 24... e5 {[%clk 0:00:37.3]} 25.
Qf3 {[%clk 0:00:29.6]} 25... Qxc4 {[%clk 0:00:35.3]} 26. Rxa7 {[%clk 0:00:27.8]}
26... Rb1 {[%clk 0:00:31]} 27. Kh2 {[%clk 0:00:23.7]} 27... Ra1 {[%clk 0:00:21]}
28. a3 {[%clk 0:00:19.3]} 28... Ra2 {[%clk 0:00:13.9]} 29. Kg2 {[%clk
0:00:16.9]} 29... Ra1 {[%clk 0:00:13.1]} 30. Kh2 {[%clk 0:00:17.1]} 30... Ra2
{[%clk 0:00:02.6]} 31. Kg2 {[%clk 0:00:10.6]} 31... Ra1 {[%clk 0:00:03.1]} 32.
Kh2 {[%clk 0:00:10.6]} 1/2-1/2

[Event "Early-Titled-Tuesday-Blitz-January-16-2024"]
[Site "Chess.com"]
[Date "2024.01.16"]
[Round "5"]
[White "sakkikuska"]
[Black "Eesha-Karavade"]
[Result "1/2-1/2"]
[WhiteElo "2602"]
[BlackElo "2441"]
[TimeControl "180+1"]
[EndTime "8:58:17 PST"]
[Termination "Game drawn by repetition"]

1. e4 {[%clk 0:02:59.2]} 1... e5 {[%clk 0:02:58]} 2. Nf3 {[%clk 0:02:59.2]} 2...
Nc6 {[%clk 0:02:56.8]} 3. Bb5 {[%clk 0:02:59.6]} 3... a6 {[%clk 0:02:55.6]} 4.
Bxc6 {[%clk 0:02:59.6]} 4... dxc6 {[%clk 0:02:54.9]} 5. Nc3 {[%clk 0:02:59.9]}
5... Bd6 {[%clk 0:02:51.3]} 6. d4 {[%clk 0:02:59.8]} 6... exd4 {[%clk
0:02:49.5]} 7. Qxd4 {[%clk 0:03:00.7]} 7... f6 {[%clk 0:02:41.6]} 8. Be3 {[%clk
0:02:53.3]} 8... Be6 {[%clk 0:02:40.4]} 9. O-O-O {[%clk 0:02:47.8]} 9... Ne7
{[%clk 0:02:39.5]} 10. a3 {[%clk 0:02:29.7]} 10... O-O {[%clk 0:02:38.1]} 11.
Ne2 {[%clk 0:02:28.1]} 11... Qe8 {[%clk 0:02:33]} 12. h3 {[%clk 0:02:22.7]}
12... Ng6 {[%clk 0:02:31]} 13. Qc3 {[%clk 0:02:05.7]} 13... Ne5 {[%clk
0:02:18.4]} 14. Nxe5 {[%clk 0:02:03.3]} 14... Bxe5 {[%clk 0:02:15.9]} 15. Bd4
{[%clk 0:02:03]} 15... Bxd4 {[%clk 0:02:10.2]} 16. Qxd4 {[%clk 0:01:53.3]} 16...
Qe7 {[%clk 0:02:09.4]} 17. f3 {[%clk 0:01:49.4]} 17... Rfd8 {[%clk 0:02:08.7]}
18. Qc3 {[%clk 0:01:47.8]} 18... Rd6 {[%clk 0:01:40.7]} 19. Rd4 {[%clk
0:01:37.3]} 19... Rad8 {[%clk 0:01:39.5]} 20. Rhd1 {[%clk 0:01:35.7]} 20... Kf7
{[%clk 0:01:33.8]} 21. Qe3 {[%clk 0:01:30.7]} 21... Rxd4 {[%clk 0:01:31.1]} 22.
Rxd4 {[%clk 0:01:29.3]} 22... Rxd4 {[%clk 0:01:27.9]} 23. Nxd4 {[%clk
0:01:19.1]} 23... Qc5 {[%clk 0:01:21]} 24. Nf5 {[%clk 0:01:08.1]} 24... Qe5
{[%clk 0:01:10.3]} 25. Nd4 {[%clk 0:00:56]} 25... Qh2 {[%clk 0:00:55.5]} 26. Qe2
{[%clk 0:00:46.8]} 26... Qg1+ {[%clk 0:00:53]} 27. Qd1 {[%clk 0:00:45.5]} 27...
Qxg2 {[%clk 0:00:52.9]} 28. h4 {[%clk 0:00:45.9]} 28... Qf2 {[%clk 0:00:49.4]}
29. h5 {[%clk 0:00:41.9]} 29... Qe3+ {[%clk 0:00:47.1]} 30. Kb1 {[%clk
0:00:40.9]} 30... Bh3 {[%clk 0:00:46.6]} 31. b3 {[%clk 0:00:32.6]} 31... g6
{[%clk 0:00:28.7]} 32. hxg6+ {[%clk 0:00:32.6]} 32... hxg6 {[%clk 0:00:26.1]}
33. Qh1 {[%clk 0:00:28.6]} 33... Qxd4 {[%clk 0:00:25.7]} 34. Qxh3 {[%clk
0:00:29]} 34... Qd1+ {[%clk 0:00:24.3]} 35. Kb2 {[%clk 0:00:29.4]} 35... Qd4+
{[%clk 0:00:24.3]} 36. Kb1 {[%clk 0:00:29.7]} 36... Qg1+ {[%clk 0:00:19.2]} 37.
Kb2 {[%clk 0:00:28.3]} 37... Qd4+ {[%clk 0:00:19.3]} 38. Kb1 {[%clk 0:00:28.3]}
1/2-1/2

[Event "Early-Titled-Tuesday-Blitz-January-16-2024"]
[Site "Chess.com"]
[Date "2024.01.16"]
[Round "5"]
[White "platy3"]
[Black "Mops_2004"]
[Result "1-0"]
[WhiteElo "2884"]
[BlackElo "2671"]
[TimeControl "180+1"]
[EndTime "8:58:19 PST"]
[Termination "platy3 won on time"]

1. e4 {[%clk 0:03:00.9]} 1... c6 {[%clk 0:02:58.1]} 2. Nf3 {[%clk 0:02:57.2]}
2... d5 {[%clk 0:02:58]} 3. Nc3 {[%clk 0:02:58.1]} 3... dxe4 {[%clk 0:02:56.9]}
4. Nxe4 {[%clk 0:02:57.9]} 4... Nf6 {[%clk 0:02:57.1]} 5. Qe2 {[%clk 0:02:57.5]}
5... Nxe4 {[%clk 0:02:56.7]} 6. Qxe4 {[%clk 0:02:58.4]} 6... Nd7 {[%clk
0:02:56.7]} 7. Bc4 {[%clk 0:02:57.8]} 7... Nf6 {[%clk 0:02:56.6]} 8. Ne5 {[%clk
0:02:58.2]} 8... e6 {[%clk 0:02:56.9]} 9. Qe2 {[%clk 0:02:58.7]} 9... b5 {[%clk
0:02:56.1]} 10. Bb3 {[%clk 0:02:57.7]} 10... Bd6 {[%clk 0:02:38]} 11. O-O {[%clk
0:02:53]} 11... Qc7 {[%clk 0:02:35.3]} 12. d4 {[%clk 0:02:53.2]} 12... a5 {[%clk
0:02:32]} 13. a4 {[%clk 0:02:49.8]} 13... O-O {[%clk 0:02:28.2]} 14. Re1 {[%clk
0:02:46.6]} 14... Ba6 {[%clk 0:02:12.3]} 15. Qf3 {[%clk 0:02:32.8]} 15... c5
{[%clk 0:02:09.9]} 16. Bg5 {[%clk 0:02:05.8]} 16... Nd5 {[%clk 0:01:57.2]} 17.
axb5 {[%clk 0:02:00.9]} 17... Bxb5 {[%clk 0:01:22.5]} 18. c4 {[%clk 0:01:31]}
18... cxd4 {[%clk 0:01:22]} 19. Ng4 {[%clk 0:01:31.4]} 19... a4 {[%clk
0:01:16.6]} 20. cxd5 {[%clk 0:01:22.1]} 20... axb3 {[%clk 0:01:14.6]} 21. Rxa8
{[%clk 0:01:22.7]} 21... Rxa8 {[%clk 0:01:13.5]} 22. dxe6 {[%clk 0:01:23.3]}
22... Rf8 {[%clk 0:00:29.2]} 23. Qd5 {[%clk 0:00:43.5]} 23... Bc4 {[%clk
0:00:13.9]} 24. exf7+ {[%clk 0:00:42.2]} 24... Kh8 {[%clk 0:00:05]} 25. Qxd4
{[%clk 0:00:42.5]} 25... h5 {[%clk 0:00:03.4]} 26. Ne5 {[%clk 0:00:26.1]} 26...
Bxe5 {[%clk 0:00:03.4]} 27. Rxe5 {[%clk 0:00:24.5]} 27... Qxf7 {[%clk
0:00:03.9]} 28. Be3 {[%clk 0:00:21.8]} 28... Kh7 {[%clk 0:00:03.8]} 29. h3
{[%clk 0:00:16.6]} 29... Kg8 {[%clk 0:00:04]} 30. Qe4 {[%clk 0:00:12.6]} 30...
g6 {[%clk 0:00:03.3]} 31. Re7 {[%clk 0:00:12.6]} 1-0

[Event "Early-Titled-Tuesday-Blitz-January-16-2024"]
[Site "Chess.com"]
[Date "2024.01.16"]
[Round "5"]
[White "Iskusnyh"]
[Black "TrompeterImEther"]
[Result "0-1"]
[WhiteElo "2632"]
[BlackElo "2501"]
[TimeControl "180+1"]
[EndTime "8:58:20 PST"]
[Termination "TrompeterImEther won on time"]

1. d4 {[%clk 0:03:00.9]} 1... Nf6 {[%clk 0:02:59.2]} 2. c4 {[%clk 0:02:59.2]}
2... e6 {[%clk 0:02:59.2]} 3. g3 {[%clk 0:02:58.5]} 3... c5 {[%clk 0:02:56.8]}
4. Nf3 {[%clk 0:02:54.7]} 4... cxd4 {[%clk 0:02:55.7]} 5. Nxd4 {[%clk
0:02:53.5]} 5... d5 {[%clk 0:02:55.7]} 6. Bg2 {[%clk 0:02:52]} 6... dxc4 {[%clk
0:02:50.7]} 7. Qa4+ {[%clk 0:02:31.8]} 7... Nbd7 {[%clk 0:02:48.2]} 8. O-O
{[%clk 0:02:27]} 8... Bc5 {[%clk 0:02:44.7]} 9. Qxc4 {[%clk 0:02:24.5]} 9... O-O
{[%clk 0:02:41.3]} 10. Nc3 {[%clk 0:02:19.6]} 10... Qe7 {[%clk 0:02:38.8]} 11.
Nb3 {[%clk 0:02:12.3]} 11... Bd6 {[%clk 0:02:32.9]} 12. Be3 {[%clk 0:01:57.7]}
12... Ne5 {[%clk 0:02:27.1]} 13. Qd4 {[%clk 0:01:33.7]} 13... Nc6 {[%clk
0:02:24.1]} 14. Qh4 {[%clk 0:01:29.8]} 14... Bd7 {[%clk 0:02:19.9]} 15. Rfd1
{[%clk 0:01:26.2]} 15... Rfd8 {[%clk 0:02:13.7]} 16. Bg5 {[%clk 0:01:23.8]}
16... Be5 {[%clk 0:02:08.4]} 17. Ne4 {[%clk 0:01:13.9]} 17... h6 {[%clk
0:01:54.4]} 18. Nxf6+ {[%clk 0:01:10.8]} 18... Bxf6 {[%clk 0:01:53.4]} 19. Bxf6
{[%clk 0:01:10.5]} 19... Qxf6 {[%clk 0:01:53.6]} 20. Qxf6 {[%clk 0:01:10.2]}
20... gxf6 {[%clk 0:01:54.5]} 21. Nc5 {[%clk 0:01:10]} 21... Be8 {[%clk
0:01:49.5]} 22. Nxb7 {[%clk 0:01:07.5]} 22... Rxd1+ {[%clk 0:01:40.9]} 23. Rxd1
{[%clk 0:01:08.4]} 23... Rb8 {[%clk 0:01:36.6]} 24. Nd6 {[%clk 0:01:00.8]} 24...
Ne5 {[%clk 0:01:31.8]} 25. Nxe8 {[%clk 0:00:56.1]} 25... Rxe8 {[%clk 0:01:30.6]}
26. f4 {[%clk 0:00:51.4]} 26... Nc4 {[%clk 0:01:19]} 27. b3 {[%clk 0:00:50.4]}
27... Nb6 {[%clk 0:01:17.4]} 28. Rc1 {[%clk 0:00:36.2]} 28... Rd8 {[%clk
0:01:11.6]} 29. Bf3 {[%clk 0:00:35]} 29... Rd2 {[%clk 0:01:09.1]} 30. a4 {[%clk
0:00:34.7]} 30... Rb2 {[%clk 0:01:06.1]} 31. Rc7 {[%clk 0:00:34.1]} 31... Rxb3
{[%clk 0:01:01.4]} 32. Rxa7 {[%clk 0:00:33]} 32... Ra3 {[%clk 0:00:53]} 33. a5
{[%clk 0:00:32.8]} 33... Nc4 {[%clk 0:00:53.3]} 34. a6 {[%clk 0:00:04.2]} 34...
Kg7 {[%clk 0:00:45]} 35. Bh5 {[%clk 0:00:04.1]} 35... Nd6 {[%clk 0:00:44.9]} 36.
Ra8 {[%clk 0:00:02.7]} 36... f5 {[%clk 0:00:42.5]} 37. Kg2 {[%clk 0:00:02.6]}
37... Kf6 {[%clk 0:00:42.2]} 38. a7 {[%clk 0:00:02.7]} 38... Ke7 {[%clk
0:00:38.9]} 39. h3 {[%clk 0:00:02]} 39... Nb5 {[%clk 0:00:34.5]} 0-1